Workbook

Sheet 納品書
Q1: 納 品 書 | AE1: No. | AG1: 3
AE2: 2023-05-26
AI3: Page | AK3: 1 | AL3: / | AM3: 1
B4: スーパー白井 | N4: =VLOOKUP(B4,宛先一覧!$B$3:$C$22,2,FALSE) -> 御中
Z5: 273-0123
W6: 住所 | Z6: 千葉県鎌ケ谷市東中沢2-4-6
W7: 事業者名 | AA7: 中沢商事
W8: 代表者職氏名 | AB8: 代表 | AD8: 冨澤 徹
W9: ℡： | Y9: 047-438-3456 | AD9: FAX: | AF9: 047-438-3456
Z10: 担当:冨澤 徹 (携帯:090-6543-0110)
C11: 下記のとおり納品致します。
B12: 記
B13: 項番 | D13: 品 名 ／ 摘 要 | N13: 数量 | Q13: 単位 | S13: 単価(円) | W13: 金 額 (円) | AD13: 備 考
B14: 1 | D14: 油揚げ 4kg | N14: 160 | Q14: 枚 | S14: 60 | W14: =IF(S14<>"",S14*N14,"") -> 9600 | AD14: 製造： / ：
B15: 2 | W15: =IF(S15<>"",S15*N15,"") -> 
B16: 3
B17: 4
B18: 5
B19: 6
B20: 7
D21: 合 計 金 額 | W21: =SUM(W14:AC20) -> 9600
Q23: 納 品 書(控） | AE23: No. | AG23: =IF(AG1<>"",AG1,"") -> 3
AE24: =AE2 -> 2023-05-26
AI25: Page | AK25: 1 | AL25: / | AM25: 1
B26: =B4 -> スーパー白井 | N26: 様
Z27: =Z$5 -> 273-0123
W28: 住所 | Z28: =Z$6 -> 千葉県鎌ケ谷市東中沢2-4-6
W29: 事業者名 | AA29: =AA$7 -> 中沢商事
W30: 代表者職氏名 | AB30: 代表 | AD30: =AD$8 -> 冨澤 徹
W31: ℡： | Y31: =Y$9 -> 047-438-3456 | AD31: FAX: | AF31: =AF$9 -> 047-438-3456
Z32: =Z$10 -> 担当:冨澤 徹 (携帯:090-6543-0110)
B34: 項番 | D34: 品 名 ／ 摘 要 | N34: 数量 | Q34: 単位 | S34: 単価(円) | W34: 金 額 (円) | AD34: 備 考
B35: 1 | D35: =IF(D14<>"",D14,"") -> 油揚げ 4kg | N35: =IF(N14<>"",N14,"") -> 160 | Q35: =IF(Q14<>"",Q14,"") -> 枚 | S35: =IF(S14<>"",S14,"") -> 60 | W35: =IF(N35<>"",N35*S35,"") -> 9600 | AD35: =IF(AD14<>"",AD14,"") -> 製造： / ：
B36: 2 | N36: =IF(N15<>"",N15,"") ->  | W36: =IF(N36<>"",N36*S36,"") -> 
B37: 3 | N37: =IF(N16<>"",N16,"") -> 
B38: 4
B39: 5
B40: 6
B41: 7
D42: 合 計 金 額 | W42: =SUM(W35:AC41) -> 9600
Q43: 内 訳 書 | AE43: No. | AG43: =IF(AG23<>"",AG23,"") -> 3
AE44: =AE24 -> 2023-05-26
AI45: Page | AK45: 1 | AL45: / | AM45: 1
B46: =B26 -> スーパー白井 | N46: 様
Z47: =Z$5 -> 273-0123
W48: 住所 | Z48: =Z$6 -> 千葉県鎌ケ谷市東中沢2-4-6
W49: 事業者名 | AA49: =AA$7 -> 中沢商事
W50: 代表者職氏名 | AB50: 代表 | AD50: =AD$8 -> 冨澤 徹
W51: ℡： | Y51: =Y$9 -> 047-438-3456 | AD51: FAX: | AF51: =AF$9 -> 047-438-3456
Z52: =Z$10 -> 担当:冨澤 徹 (携帯:090-6543-0110)
B54: 項番 | D54: 品 名 ／ 摘 要 | N54: 数量 | Q54: 単位 | S54: 単価(円) | W54: 金 額 (円) | AD54: 備 考
B55: 1 | D55: =IF(D35<>"",D35,"") -> 油揚げ 4kg | N55: =IF(N35<>"",N35,"") -> 160 | Q55: =IF(Q35<>"",Q35,"") -> 枚 | S55: =IF(S35<>"",S35,"") -> 60 | W55: =IF(N55<>"",N55*S55,"") -> 9600 | AD55: =IF(AD35<>"",AD35,"") -> 製造： / ：
B56: 2 | D56: =IF(D36<>"",D36,"") ->  | N56: =IF(N36<>"",N36,"") ->  | W56: =IF(N56<>"",N56*S56,"") ->  | AD56: =IF(AD36<>"",AD36,"") -> 
B57: 3 | D57: =IF(D37<>"",D37,"") ->  | N57: =IF(N37<>"",N37,"") -> 
B58: 4
B59: 5
B60: 6
B61: 7
D62: 合 計 金 額 | W62: =SUM(W55:AC61) -> 9600

Sheet 請求書(A4)
B1: 請 求 書
AA3: =納品書!AE24 -> 2023-05-26
A5: 松戸市立病院 | K5: 様
S7: 〒 | U7: =納品書!Z27 -> 273-0123
S8: 住所 | U8: =納品書!Z28 -> 千葉県鎌ケ谷市東中沢2-4-6
S10: 事業者名 | W10: =納品書!AA29 -> 中沢商事
S11: 登録番号 | X11: T1234567890123
S12: 代表者職氏名 | X12: 代表
X13: =納品書!AD30 -> 冨澤 徹
S14: ℡： | U14: =納品書!Y31 -> 047-438-3456 | Z14: FAX: | AB14: =納品書!AF31 -> 047-438-3456
V15: =納品書!Z32 -> 担当:冨澤 徹 (携帯:090-6543-0110)
J16: 令和 | L16: 5 | N16: 年 | O16: 5 | Q16: 月分
I17: 病院用賄材料費として下記のとおりご請求致します。
A19: 記
A20: 品 目 | N20: 税率 | P20: 数 量 | U20: 単位 | W20: 単 価（円） | AC20: 金 額（円）
A21: 木綿 豆腐１ | N21: =IFERROR(VLOOKUP(A21,品名一覧!$B$2:$D$22,3,FALSE),"") -> 0.08 | P21: 160 | U21: 枚 | W21: 60 | AC21: =IF(W21<>"",W21*P21,"") -> 9600
A22: 袋(中） | N22: =IFERROR(VLOOKUP(A22,品名一覧!$B$2:$D$22,3,FALSE),"") -> 0.1 | P22: 5 | U22: 枚 | W22: 3 | AC22: =IF(W22<>"",W22*P22,"") -> 15
A23: 生揚げ（１／４） | N23: =IFERROR(VLOOKUP(A23,品名一覧!$B$2:$D$22,3,FALSE),"") -> 0.08 | P23: 50 | U23: 枚 | W23: 55 | AC23: 2750
A24: 袋(大） | N24: =IFERROR(VLOOKUP(A24,品名一覧!$B$2:$D$22,3,FALSE),"") -> 0.1 | P24: 170 | U24: 枚 | W24: 5 | AC24: 850
N25: =IFERROR(VLOOKUP(A25,品名一覧!$B$2:$D$22,3,FALSE),"") -> 
N26: =IFERROR(VLOOKUP(A26,品名一覧!$B$2:$D$22,3,FALSE),"") -> 
N27: =IFERROR(VLOOKUP(A27,品名一覧!$B$2:$D$22,3,FALSE),"") -> 
A28: =_xlfn.UNIQUE(N21:N27,FALSE,FALSE) -> 0.08 | B28: 対象金額 | F28: =SUMIF(N$21:N$27,A$28,AC$21:AC$27) -> 12350 | J28: 税額 | L28: =ROUNDDOWN(F28*A28,0) -> 988 | P28: 合 計 金 額 | AC28: =SUM(AC21:AJ27) -> 13215
A29: 0.1 | B29: 対象金額 | F29: =SUMIF(N$21:N$27,A$29,AC$21:AC$27) -> 865 | J29: 税額 | L29: =ROUNDDOWN(F29*A29,0) -> 86 | P29: 消 費 税 額 | AC29: =SUM(L28:O29) -> 1074
P30: ご 請 求 金 額 | AC30: =AC28+AC29 -> 14289

Sheet 納品書【記入要領】
P1: 納 品 書 | AD1: No.
AD2: 2023-05-26
AH3: Page | AJ3: 1 | AK3: / | AL3: 1 | AO3: 入力の説明
A4: スーパー白井 | M4: 様 | AQ4: ：必須入力
Y5: 273-0123 | AQ5: ：任意入力
V6: 住所 | Y6: 千葉県鎌ケ谷市東中沢2-4-6 | AQ6: ：入力不可（自動表示の計算式あり）
V7: 事業者名 | Z7: 中沢商事
V8: 代表者職氏名 | AA8: 代表 | AC8: 冨澤 徹
V9: ℡： | X9: 047-438-3456 | AC9: FAX: | AE9: 047-438-3456
Y10: 担当:冨澤 徹 (携帯:090-6543-0110)
B11: 材料として下記のとおり納品致します。
A12: 記
A13: 項番 | C13: 品 名 ／ 摘 要 | M13: 数量 | P13: 単位 | R13: 単価(円) | V13: 金 額 (円) | AC13: 備 考
A14: 1 | C14: 木綿 豆腐１ | M14: 111 | P14: Kg | R14: 2222 | V14: =IF(R14<>"",R14*M14,"") -> 246642
A15: 2 | V15: =IF(R15<>"",R15*M15,"") -> 
A16: 3
A17: 4
A18: 5
A19: 6
A20: 7
C21: 合 計 金 額 | V21: =SUM(V14:AB20) -> 246642
P27: 内 訳 書 | AD27: No. | AF27: =IF(AF1<>"",AF1,"") -> 
AD28: =AD2 -> 2023-05-26
AH29: Page | AJ29: 1 | AK29: / | AL29: 1
A30: =A4 -> スーパー白井 | M30: 様
Y31: =Y$5 -> 273-0123
V32: 住所 | Y32: =Y$6 -> 千葉県鎌ケ谷市東中沢2-4-6
V33: 事業者名 | Z33: =Z$7 -> 中沢商事
V34: 代表者職氏名 | AA34: 代表 | AC34: =AC$8 -> 冨澤 徹
V35: ℡： | X35: =X$9 -> 047-438-3456 | AC35: FAX: | AE35: =AE$9 -> 047-438-3456
Y36: =Y$10 -> 担当:冨澤 徹 (携帯:090-6543-0110)
A38: 項番 | C38: 品 名 ／ 摘 要 | M38: 数量 | P38: 単位 | R38: 単価(円) | V38: 金 額 (円) | AC38: 備 考
A39: 1 | C39: =IF(C14<>"",C14,"") -> 木綿 豆腐１ | M39: =IF(M14<>"",M14,"") -> 111 | P39: =IF(P14<>"",P14,"") -> Kg | R39: =IF(R14<>"",R14,"") -> 2222 | V39: =IF(M39<>"",M39*R39,"") -> 246642 | AC39: =IF(AC14<>"",AC14,"") -> 
A40: 2 | C40: =IF(C15<>"",C15,"") ->  | M40: =IF(M15<>"",M15,"") ->  | V40: =IF(M40<>"",M40*R40,"") ->  | AC40: =IF(AC15<>"",AC15,"") -> 
A41: 3 | C41: =IF(C16<>"",C16,"") ->  | M41: =IF(M16<>"",M16,"") -> 
A42: 4
A43: 5
A44: 6
A45: 7
C46: 合 計 金 額 | V46: =SUM(V39:AB45) -> 246642

Sheet 請求書【記入要領】
B1: 請 求 書
AA3: =納品書【記入要領】!AD28 -> 2023-05-26 | AM3: 入力の説明
AO4: ：必須入力
A5: 松戸市立病院 | K5: 様 | AO5: ：任意入力
AO6: ：入力不可（自動表示の計算式あり）
S7: 〒 | U7: =納品書!Z27 -> 273-0123
S8: 住所 | U8: =納品書!Z28 -> 千葉県鎌ケ谷市東中沢2-4-6
S10: 事業者名 | W10: =納品書!AA29 -> 中沢商事
S11: 登録番号 | X11: T1234567890123
S12: 代表者職氏名 | X12: 代表
X13: =納品書!AD30 -> 冨澤 徹
S14: ℡： | U14: =納品書!Y31 -> 047-438-3456 | Z14: FAX: | AB14: =納品書!AF31 -> 047-438-3456
V15: =納品書!Z32 -> 担当:冨澤 徹 (携帯:090-6543-0110)
J16: 令和 | L16: 5 | N16: 年 | O16: 11 | Q16: 月分
I17: 材料費として下記のとおりご請求致します。
A19: 記
A20: 品 目 | N20: 税率 | P20: 数 量 | U20: 単位 | W20: 単 価（円） | AC20: 金 額（円）
A21: 木綿 豆腐１ | N21: =IFERROR(VLOOKUP(A21,品名一覧!$B$2:$D$22,3,FALSE),"") -> 0.08 | P21: 160 | U21: 枚 | W21: 60 | AC21: =IF(W21<>"",W21*P21,"") -> 9600
A22: 袋(中） | N22: =IFERROR(VLOOKUP(A22,品名一覧!$B$2:$D$22,3,FALSE),"") -> 0.1 | P22: 5 | U22: 枚 | W22: 3 | AC22: =IF(W22<>"",W22*P22,"") -> 15
A23: 生揚げ（１／４） | N23: =IFERROR(VLOOKUP(A23,品名一覧!$B$2:$D$22,3,FALSE),"") -> 0.08 | P23: 50 | U23: 枚 | W23: 55 | AC23: 2750
A24: 袋(大） | N24: =IFERROR(VLOOKUP(A24,品名一覧!$B$2:$D$22,3,FALSE),"") -> 0.1 | P24: 170 | U24: 枚 | W24: 5 | AC24: 850
N25: =IFERROR(VLOOKUP(A25,品名一覧!$B$2:$D$22,3,FALSE),"") -> 
N26: =IFERROR(VLOOKUP(A26,品名一覧!$B$2:$D$22,3,FALSE),"") -> 
N27: =IFERROR(VLOOKUP(A27,品名一覧!$B$2:$D$22,3,FALSE),"") -> 
A28: =_xlfn.UNIQUE(N21:N27,FALSE,FALSE) -> 0.08 | B28: 対象金額 | F28: =SUMIF(N$21:N$27,A$28,AC$21:AC$27) -> 12350 | J28: 税額 | L28: =ROUNDDOWN(F28*A28,0) -> 988 | P28: 合 計 金 額 | AC28: =SUM(AC21:AJ27) -> 13215
A29: 0.1 | B29: 対象金額 | F29: =SUMIF(N$21:N$27,A$29,AC$21:AC$27) -> 865 | J29: 税額 | L29: =ROUNDDOWN(F29*A29,0) -> 86 | P29: 消 費 税 額 | AC29: =SUM(L28:O29) -> 1074
P30: ご 請 求 金 額 | AC30: =AC28+AC29 -> 14289

Sheet 環境(削除不可)
A1: pdfファイルの出力先
B2: シート名 | C2: フォルダ(事前作成要) | D2: ご請求金額セルの列 | E2: ご請求金額セルの行
B3: 納品書 | C3: (pdf自動出力不可)
B4: 請求書(A4) | C4: C:\hogehoge\test | D4: 30 | E4: 29
A6: pdfファイルのネーミングルール
B7: yyyymmdd_得意先名_請求金額.pdf

Sheet 宛先一覧
A1: No | B1: 氏名 | C1: 敬称 | D1: 会社名 | E1: 部署名 | F1: 役職 | G1: 郵便番号 | H1: 住所1 | I1: 住所2 | J1: 電話番号 | K1: FAX番号
A3: 0001 | B3: スーパー白井 | C3: 御中 | G3: 270-1434 | H3: 千葉県白井市 | I3: 大山口3-507 | J3: 047-439-5811
A4: 0002 | B4: 船橋ドラッグストア | C4: 御中 | G4: 273-0866 | H4: 千葉県船橋市 | I4: 夏見台2-12-1 | J4: 047-438-2000
A5: 0003 | B5: 柏食品 | C5: 御中 | G5: 277-0941 | H5: 千葉県柏市 | I5: 高柳5-6-7 | J5: 047-438-2001
A6: 0004 | B6: 松戸市立病院 | C6: 御中 | G6: 270-2223 | H6: 千葉県松戸市 | I6: 秋山1-2-4 | J6: 047-438-2002 | K6: 047-443-0104
A7: 0005 | B7: 山田 信一 | C7: 様 | G7: 272-0001 | H7: 千葉県船橋市 | I7: 丸山2-4-1 | J7: 047-443-0005 | K7: 047-443-0105
A8: 0006 | B8: 山田 信二 | C8: 様 | G8: 272-0002 | H8: 千葉県船橋市 | I8: 丸山2-4-2 | J8: 047-443-0006 | K8: 047-443-0106
A9: 0007 | B9: 山田 信三 | C9: 様 | G9: 272-0003 | H9: 千葉県船橋市 | I9: 丸山2-4-3 | J9: 047-443-0007 | K9: 047-443-0107
A10: 0008 | B10: 関口 一郎 | C10: 様 | D10: 株式会社 BB1 | E10: 総務課 | F10: 課長 | G10: 271-0101 | H10: 鎌ケ谷市鎌ケ谷1-2-3 | I10: セカイビル 301 | J10: 047-443-0008 | K10: 047-443-0108
A11: 0009 | B11: 関口 二郎 | C11: 様 | D11: 株式会社 BB2 | E11: 総務課 | F11: 課長 | G11: 271-0102 | H11: 鎌ケ谷市鎌ケ谷1-2-4 | I11: セカイビル 302 | J11: 047-443-0009 | K11: 047-443-0109
A12: 0010 | B12: 関口 三郎 | C12: 様 | D12: 株式会社 BB3 | E12: 総務課 | F12: 課長 | G12: 271-0103 | H12: 鎌ケ谷市鎌ケ谷1-2-5 | I12: セカイビル 303 | J12: 047-443-0010 | K12: 047-443-0110
A13: 0011
A14: 0012
A15: 0013
A16: 0014
A17: 0015
A18: 0016
A19: 0017
A20: 0018
A21: 0019
A22: 0020

Sheet 品名一覧
A1: No | B1: 品名 | C1: 品番 | D1: 税率
A2: 0
A3: 1 | B3: 木綿 豆腐１ | C3: =A3 -> 1 | D3: 0.08
A4: 2 | B4: 木綿 豆腐 押し ％ | C4: 2 | D4: 0.08
A5: 3 | B5: 木綿 豆腐 絞り ％ | C5: 3 | D5: 0.08
A6: 4 | B6: 油揚げ | C6: 4 | D6: 0.08
A7: 5 | B7: 油揚げ(刻み） | C7: 5 | D7: 0.08
A8: 6 | B8: 生揚げ | C8: 6 | D8: 0.08
A9: 7 | B9: 生揚げ（１／４） | C9: 7 | D9: 0.08
A10: 8 | B10: 生揚げ（１／３） | C10: 8 | D10: 0.08
A11: 9 | B11: がんもどき | C11: 9 | D11: 0.08
A12: 10 | B12: 油揚げ 4kg | C12: 10 | D12: 0.08
A13: 11 | B13: 木綿 豆腐１１ | C13: 11 | D13: 0.08
A14: 12 | B14: 木綿 豆腐１２ | C14: 12 | D14: 0.08
A15: 13 | B15: 木綿 豆腐１３ | C15: 13 | D15: 0.08
A16: 14 | B16: 木綿 豆腐１４ | C16: 14 | D16: 0.08
A17: 15 | B17: 木綿 豆腐１５ | C17: 15 | D17: 0.08
A18: 16 | B18: 木綿 豆腐１６ | C18: 16 | D18: 0.08
A19: 17 | B19: 木綿 豆腐１７ | C19: 17 | D19: 0.08
A20: 18 | B20: 袋(大） | C20: 18 | D20: 0.1
A21: 19 | B21: 袋(中） | C21: 19 | D21: 0.1
A22: 20 | B22: 袋(小） | C22: 20 | D22: 0.1

Sheet 単位一覧
A1: No | B1: 単位
A2: 1
A3: 2 | B3: Kg
A4: 3 | B4: g
A5: 4 | B5: 個
A6: 5 | B6: 箱
A7: 6 | B7: l
A8: 7 | B8: ml
A9: 8 | B9: 枚
A10: 9
A11: 10
A12: 11
A13: 12
A14: 13
A15: 14
A16: 15
A17: 16
A18: 17
A19: 18
A20: 19
A21: 20

Sheet 備考一覧
A1: No | B1: 備考
A2: 0
A3: 1 | B3: 製造： / ：
A4: 2
A5: 3
A6: 4
A7: 5
A8: 6
A9: 7
A10: 8
A11: 9
A12: 10
A13: 11
A14: 12
A15: 13
A16: 14
A17: 15
A18: 16
A19: 17
A20: 18
A21: 19
A22: 20
